fUSD/lending_fUSD_20260625
["ID","MTS","AMOUNT","RATE_DAILY","PERIOD"]
[426423054,1782372640000,-5028.81463217,0.000165,2]
[426423049,1782372640000,-343.7590191,0.00016438,2]
[426423045,1782372640000,-678.2,0.000162,2]
[426423046,1782372640000,-5028.81463217,0.000163,2]
[426423055,1782372640000,-214.94,0.00016546,2]
[426423048,1782372640000,-236.0,0.00016438,2]
[426423060,1782372640000,-5028.81463217,0.00017,2]
[426423067,1782372640000,-5028.81463217,0.000177,2]
[426423065,1782372640000,-570.43999955,0.00017536,2]
[426423063,1782372640000,-5028.81463217,0.000173,2]
[426423061,1782372640000,-500.0,0.00017014,2]
[426423064,1782372640000,-5028.81463217,0.000175,2]
[426423059,1782372640000,-1300.0,0.000169,6]
[426423079,1782372640000,-1073.57782202,0.000182,2]
[426423052,1782372640000,-151.0,0.00016438,2]
[426423078,1782372640000,-1808.68877903,0.000181,2]
[426423075,1782372640000,-537.35,0.00018,2]
[426423071,1782372640000,-62920.62797204,0.00018,2]
[426423069,1782372640000,-2010.64,0.00017728,2]
[426423062,1782372640000,-5028.81463217,0.000172,2]
[426423043,1782372640000,-5091.65,0.00016116,2]
[426423034,1782372640000,-151.0,0.00015068,2]
[426423047,1782372640000,-236.0,0.00016438,2]
[426423020,1782372640000,-300.0,0.00015,2]
[426423021,1782372640000,-2433902.82684933,0.00015,2]
[426423023,1782372640000,-537.35,0.00015,2]
[426423022,1782372640000,-2763.68585661,0.00015,7]
[426423026,1782372640000,-151.0,0.00015,2]
[426423024,1782372640000,-170.992462,0.00015,2]
[426423025,1782372640000,-151.0,0.00015,2]
[426423027,1782372640000,-151.0,0.00015,2]
[426423028,1782372640000,-151.0,0.00015,2]
[426423029,1782372640000,-151.0,0.00015,2]
[426423040,1782372640000,-199.12079302,0.00016,2]
[426423050,1782372640000,-151.0,0.00016438,2]
[426423030,1782372640000,-151.0,0.00015,2]
[426423033,1782372640000,-151.13177012,0.00015068,2]
[426423032,1782372640000,-273.77645038,0.00015002,2]
[426423031,1782372640000,-151.0,0.00015,2]
[426423039,1782372640000,-300.0,0.00016,2]
[426423035,1782372640000,-151.0,0.00015068,2]
[426423074,1782372640000,-1073.57782202,0.00018,2]
[426423037,1782372640000,-178.48,0.00015983,2]
[426423036,1782372640000,-328.0,0.00015536,2]
[426423038,1782372640000,-160.0,0.00016,8]
[426423044,1782372640000,-5028.81463217,0.000162,2]
[426423042,1782372640000,-5397.84,0.00016116,2]
[426423041,1782372640000,-150.99,0.00016116,2]
[426423077,1782372640000,-185.486808,0.00018082,2]
[426423051,1782372640000,-151.0,0.00016438,2]
[426423080,1782372640000,-189.86987819,0.000182,2]
[426423103,1782372640000,-1000.0,0.00019178,2]
[426423109,1782372640000,-151.0,0.00019178,2]
[426423119,1782372640000,-167.9,0.00019336,2]
[426423120,1782372640000,-250.0,0.00019336,2]
[426423111,1782372640000,-1073.57782202,0.000193,2]
[426423108,1782372640000,-500.0,0.00019178,2]
[426423110,1782372640000,-178.48,0.0001918,2]
[426423117,1782372640000,-250.0,0.00019336,2]
[426423118,1782372640000,-195.784,0.00019336,2]
[426423115,1782372640000,-150.0,0.00019336,2]
[426423116,1782372640000,-150.299,0.00019336,2]
[426423105,1782372640000,-20518.94,0.00019178,2]
[426423112,1782372640000,-209.947,0.00019336,2]
[426423121,1782372640000,-191.0,0.00019336,2]
[426423122,1782372640000,-249.496,0.00019336,2]
[426423126,1782372640000,-1235.844,0.00019336,2]
[426423125,1782372640000,-491.0,0.00019336,2]
[426423124,1782372640000,-1277.0,0.00019336,2]
[426423123,1782372640000,-1361.0,0.00019336,2]
[426423129,1782372640000,-162.69,0.00019355,7]
[426423130,1782372640000,-500.0,0.00019397,2]
[426423131,1782372640000,-622.0,0.00019452,2]
[426423127,1782372640000,-6141.852,0.00019336,2]
[426423073,1782372640000,-189.86987819,0.00018,2]
[426423113,1782372640000,-289.569,0.00019336,2]
[426423107,1782372640000,-151.0,0.00019178,2]
[426423114,1782372640000,-150.758,0.00019336,2]
[426423104,1782372640000,-760.5431842,0.00019178,2]
[426423072,1782372640000,-1212.02328487,0.00018,2]
[426423102,1782372640000,-1000.0,0.00019178,2]
[426423076,1782372640000,-350.0,0.00018,2]
[426423082,1782372640000,-1073.57782202,0.000184,2]
[426423092,1782372640000,-300.0,0.00018999,2]
[426423084,1782372640000,-1073.57782202,0.000185,2]
[426423081,1782372640000,-678.2,0.000182,2]
[426423093,1782372640000,-300.0,0.00018999,2]
[426423083,1782372640000,-231.56754967,0.000184,2]
[426423085,1782372640000,-1073.57782202,0.000187,2]
[426423088,1782372640000,-48994.37,0.0001872,2]
[426423086,1782372640000,-966.33,0.0001872,2]
[426423089,1782372640000,-177.05488996,0.00018789,2]
[426423128,1782372640000,-165.813,0.00019336,2]
[426423087,1782372640000,-1703.89,0.0001872,2]
[426423101,1782372640000,-1000.0,0.00019178,2]
[426423106,1782372640000,-158.937491,0.00019178,2]
[426423095,1782372640000,-2388.10510472,0.00019,2]
[426423096,1782372640000,-1144.1781529,0.00019,2]
[426423097,1782372640000,-1073.57782202,0.000191,2]
[426423100,1782372640000,-1000.0,0.00019178,2]
[426423098,1782372640000,-186.87,0.00019128,2]
[426423094,1782372640000,-202050.11219589,0.00019,2]
[426423090,1782372640000,-1073.57782202,0.000189,2]
[426423091,1782372640000,-4015.05532469,0.0001899,2]
[426423099,1782372640000,-1000.0,0.00019178,2]
[426423164,1782372641000,-400.0,0.0002,2]
[426423178,1782372641000,-151.0,0.00020304,2]
[426423181,1782372641000,-151.0,0.00020304,2]
[426423184,1782372641000,-151.0,0.00020304,2]
[426423165,1782372641000,-4335.0,0.0002,2]
[426423168,1782372641000,-190.79333524,0.0002,2]
[426423163,1782372641000,-849.4515839,0.0002,2]
[426423167,1782372641000,-190.79333524,0.0002,2]
[426423166,1782372641000,-2000.0,0.0002,7]
[426423179,1782372641000,-151.0,0.00020304,2]
[426423159,1782372641000,-13096.8442034,0.0002,2]
[426423170,1782372641000,-190.79333524,0.0002,2]
[426423169,1782372641000,-190.79333524,0.0002,2]
[426423183,1782372641000,-151.0,0.00020304,2]
[426423175,1782372641000,-200.0,0.00020304,2]
[426423182,1782372641000,-151.0,0.00020304,2]
[426423176,1782372641000,-151.0,0.00020304,2]
[426423180,1782372641000,-151.0,0.00020304,2]
[426423174,1782372641000,-849.4515839,0.000202,2]
[426423172,1782372641000,-4154.0,0.0002,2]
[426423173,1782372641000,-534.184005,0.00020136,2]
[426423196,1782372641000,-151.0,0.00020304,2]
[426423197,1782372641000,-151.0,0.00020304,2]
[426423186,1782372641000,-151.0,0.00020304,2]
[426423185,1782372641000,-151.0,0.00020304,2]
[426423189,1782372641000,-151.0,0.00020304,2]
[426423191,1782372641000,-151.0,0.00020304,2]
[426423190,1782372641000,-151.0,0.00020304,2]
[426423177,1782372641000,-151.0,0.00020304,2]
[426423187,1782372641000,-151.0,0.00020304,2]
[426423145,1782372641000,-1561.19726438,0.0002,2]
[426423161,1782372641000,-5008.61328594,0.0002,2]
[426423188,1782372641000,-151.0,0.00020304,2]
[426423132,1782372641000,-622.0,0.00019452,2]
[426423133,1782372641000,-444.0,0.00019452,2]
[426423135,1782372641000,-1073.57782202,0.000197,2]
[426423144,1782372641000,-5304.01607613,0.0002,2]
[426423138,1782372641000,-300.0,0.00019949,2]
[426423140,1782372641000,-504896.20806749,0.0001995,15]
[426423136,1782372641000,-185.43316387,0.000199,2]
[426423141,1782372641000,-308.49849398,0.00019999,2]
[426423143,1782372641000,-80000.0,0.0002,2]
[426423137,1782372641000,-500.0,0.00019918,2]
[426423139,1782372641000,-300.0,0.00019949,2]
[426423134,1782372641000,-1073.57782202,0.000195,2]
[426423142,1782372641000,-3103.53208417,0.00019999,2]
[426423150,1782372641000,-26905.39712317,0.0002,2]
[426423146,1782372641000,-179.64429851,0.0002,2]
[426423158,1782372641000,-936.07426143,0.0002,2]
[426423153,1782372641000,-200.0,0.0002,2]
[426423156,1782372641000,-52585.47133381,0.0002,2]
[426423148,1782372641000,-384.74899324,0.0002,2]
[426423147,1782372641000,-26047.18382464,0.0002,2]
[426423155,1782372641000,-1063.90198992,0.0002,2]
[426423152,1782372641000,-541.07946885,0.0002,2]
[426423149,1782372641000,-3950.0,0.0002,2]
[426423151,1782372641000,-1318.00162552,0.0002,2]
[426423154,1782372641000,-38016.31436919,0.0002,2]
[426423157,1782372641000,-4977.62640007,0.0002,2]
[426423171,1782372641000,-190.79333526,0.0002,2]
[426423160,1782372641000,-18139.37733987,0.0002,2]
[426423162,1782372641000,-183.89523412,0.0002,2]
[426423192,1782372641000,-156.1151735,0.00020304,2]
[426423228,1782372641000,-151.00001,0.00021918,2]
[426423195,1782372641000,-151.0,0.00020304,2]
[426423232,1782372641000,-300.0,0.00022,2]
[426423225,1782372641000,-2000.0,0.00021667,7]
[426423227,1782372641000,-5000.0,0.00021918,2]
[426423231,1782372641000,-1650.84865547,0.00022,4]
[426423234,1782372641000,-1195.04956632,0.000221,2]
[426423236,1782372641000,-1195.04956632,0.000223,2]
[426423237,1782372641000,-678.2,0.000223,7]
[426423238,1782372641000,-150.0,0.00022336,2]
[426423248,1782372641000,-1277.0,0.00022336,2]
[426423241,1782372641000,-150.0,0.00022336,2]
[426423249,1782372641000,-383.0,0.00022336,2]
[426423250,1782372641000,-1230.0,0.00022336,2]
[426423239,1782372641000,-150.0,0.00022336,2]
[426423242,1782372641000,-150.0,0.00022336,2]
[426423244,1782372641000,-150.0,0.00022336,2]
[426423247,1782372641000,-1361.0,0.00022336,2]
[426423243,1782372641000,-150.0,0.00022336,2]
[426423246,1782372641000,-150.0,0.00022336,2]
[426423240,1782372641000,-150.0,0.00022336,2]
[426423245,1782372641000,-150.0,0.00022336,2]
[426423252,1782372641000,-2253.85637667,0.00022407,2]
[426423251,1782372641000,-6084.0,0.00022336,2]
[426423255,1782372641000,-791.78,0.00022466,2]
[426423259,1782372641000,-1195.04956632,0.000225,2]
[426423254,1782372641000,-1046.06,0.00022466,2]
[426423256,1782372641000,-1346.58,0.00022466,2]
[426423253,1782372641000,-2253.85637666,0.00022407,2]
[426423193,1782372641000,-151.0,0.00020304,2]
[426423258,1782372641000,-36221.53267352,0.000225,2]
[426423230,1782372641000,-2214.46749715,0.00022,2]
[426423235,1782372641000,-245.09417176,0.0002211,2]
[426423257,1782372641000,-2900.0,0.000225,15]
[426423233,1782372641000,-450.0,0.00022,2]
[426423226,1782372641000,-1195.04956632,0.000219,2]
[426423198,1782372641000,-151.0,0.00020304,2]
[426423200,1782372641000,-151.0,0.00020304,2]
[426423199,1782372641000,-151.0,0.00020304,2]
[426423208,1782372641000,-150.0,0.0002058,2]
[426423206,1782372641000,-150.0,0.0002058,2]
[426423203,1782372641000,-774.67,0.00020548,2]
[426423201,1782372641000,-849.4515839,0.000204,2]
[426423202,1782372641000,-678.2,0.000204,2]
[426423207,1782372641000,-150.0,0.0002058,2]
[426423204,1782372641000,-10828.14,0.00020548,2]
[426423205,1782372641000,-150.0,0.0002058,2]
[426423210,1782372641000,-289.40019274,0.0002058,2]
[426423209,1782372641000,-150.0,0.0002058,2]
[426423194,1782372641000,-151.0,0.00020304,2]
[426423222,1782372641000,-58659.59771124,0.000215,2]
[426423229,1782372641000,-1010.95,0.00021918,2]
[426423224,1782372641000,-1195.04956632,0.000216,2]
[426423218,1782372641000,-1195.04956632,0.000212,2]
[426423219,1782372641000,-4881.15146204,0.00021273,2]
[426423212,1782372641000,-603.48045861,0.000207,2]
[426423217,1782372641000,-1195.04956632,0.00021,2]
[426423220,1782372641000,-201.54276184,0.000214,2]
[426423216,1782372641000,-2042.09299593,0.00021,2]
[426423215,1782372641000,-200.0,0.00020852,2]
[426423214,1782372641000,-570.43999955,0.00020823,2]
[426423213,1782372641000,-849.4515839,0.000208,2]
[426423211,1782372641000,-849.4515839,0.000206,2]
[426423223,1782372641000,-226.42415351,0.000215,2]
[426423221,1782372641000,-1195.04956632,0.000214,2]
[426423304,1782372642000,-167.89274858,0.00023818,2]
[426423302,1782372642000,-154.90955311,0.00023818,2]
[426423300,1782372642000,-175.04744034,0.00023818,2]
[426423297,1782372642000,-188.34978508,0.00023817,2]
[426423296,1782372642000,-169.09804334,0.00023817,2]
[426423291,1782372642000,-219.26116133,0.00023817,2]
[426423292,1782372642000,-168.9025751,0.00023817,2]
[426423293,1782372642000,-181.58723481,0.00023817,2]
[426423294,1782372642000,-161.11377439,0.00023817,2]
[426423289,1782372642000,-155.09929951,0.00023779,2]
[426423290,1782372642000,-151.0,0.00023779,2]
[426423295,1782372642000,-175.88024011,0.00023817,2]
[426423307,1782372642000,-245.29712847,0.00023818,2]
[426423306,1782372642000,-167.27686659,0.00023818,2]
[426423309,1782372642000,-195.34669244,0.00023818,2]
[426423301,1782372642000,-153.06267383,0.00023818,2]
[426423305,1782372642000,-184.28612442,0.00023818,2]
[426423308,1782372642000,-184.57200341,0.00023818,2]
[426423312,1782372642000,-218.94286496,0.00023818,2]
[426423311,1782372642000,-310.15372525,0.00023818,2]
[426423310,1782372642000,-252.32974034,0.00023818,2]
[426423316,1782372642000,-155.04466255,0.00023818,2]
[426423318,1782372642000,-158.94478582,0.00023818,2]
[426423321,1782372642000,-165.40203333,0.00023818,2]
[426423315,1782372642000,-157.80509474,0.00023818,2]
[426423313,1782372642000,-160.54188301,0.00023818,2]
[426423298,1782372642000,-187.42163285,0.00023818,2]
[426423303,1782372642000,-327.46358359,0.00023818,2]
[426423287,1782372642000,-155.09929951,0.00023724,2]
[426423274,1782372642000,-500.0,0.00023669,2]
[426423288,1782372642000,-151.0,0.00023724,2]
[426423314,1782372642000,-156.79485612,0.00023818,2]
[426423262,1782372642000,-175.42733258,0.0002288,2]
[426423260,1782372642000,-1195.04956632,0.000227,2]
[426423261,1782372642000,-534.00982847,0.0002271,2]
[426423264,1782372642000,-472.69893417,0.000232,2]
[426423263,1782372642000,-1195.04956632,0.00023,2]
[426423265,1782372642000,-1785.13,0.00023205,2]
[426423272,1782372642000,-1246.0,0.00023526,5]
[426423271,1782372642000,-1560.0,0.00023526,5]
[426423268,1782372642000,-1785.13,0.00023205,2]
[426423269,1782372642000,-2000.0,0.00023333,7]
[426423273,1782372642000,-1222.0,0.00023526,5]
[426423266,1782372642000,-1785.13,0.00023205,2]
[426423270,1782372642000,-2209.86077222,0.000235,2]
[426423267,1782372642000,-2677.7,0.00023205,2]
[426423276,1782372642000,-155.09929951,0.00023669,2]
[426423281,1782372642000,-500.0,0.00023669,2]
[426423279,1782372642000,-152.0,0.00023669,2]
[426423278,1782372642000,-151.0,0.00023669,2]
[426423285,1782372642000,-500.0,0.00023669,2]
[426423282,1782372642000,-152.0,0.00023669,2]
[426423275,1782372642000,-4974.45996912,0.00023669,2]
[426423277,1782372642000,-151.79338993,0.00023669,2]
[426423284,1782372642000,-500.0,0.00023669,2]
[426423286,1782372642000,-518.42813385,0.00023669,2]
[426423283,1782372642000,-1473.30168622,0.00023669,2]
[426423280,1782372642000,-785.19337861,0.00023669,2]
[426423299,1782372642000,-184.46313358,0.00023818,2]
[426423317,1782372642000,-166.15118711,0.00023818,2]
[426423325,1782372642000,-171.8357231,0.00023818,2]
[426423320,1782372642000,-157.68419209,0.00023818,2]
[426423361,1782372642000,-537.6845,0.00024765,2]
[426423357,1782372642000,-1000.0,0.00024658,2]
[426423358,1782372642000,-156.500018,0.00024658,2]
[426423356,1782372642000,-164.52,0.00024658,2]
[426423359,1782372642000,-151.0,0.00024658,2]
[426423360,1782372642000,-944.33,0.00024658,2]
[426423363,1782372642000,-785.19337861,0.00024765,2]
[426423353,1782372642000,-785.19337861,0.00024217,2]
[426423365,1782372642000,-396.0,0.00024944,5]
[426423364,1782372642000,-175.42733258,0.0002488,2]
[426423366,1782372642000,-1406.52583417,0.00025,21]
[426423368,1782372642000,-155.957992,0.00025,2]
[426423375,1782372642000,-226.434564,0.00025,2]
[426423370,1782372642000,-151.0,0.00025,2]
[426423371,1782372642000,-151.0,0.00025,2]
[426423374,1782372642000,-279.281377,0.00025,2]
[426423369,1782372642000,-151.0,0.00025,2]
[426423372,1782372642000,-151.0,0.00025,2]
[426423373,1782372642000,-151.0,0.00025,2]
[426423379,1782372642000,-4974.45996912,0.00025039,2]
[426423376,1782372642000,-151.0,0.00025,2]
[426423382,1782372642000,-176.94225243,0.0002508,2]
[426423381,1782372642000,-207.27640971,0.0002508,2]
[426423380,1782372642000,-172.66899518,0.0002508,2]
[426423378,1782372642000,-2000.0,0.00025,7]
[426423377,1782372642000,-172.290922,0.00025,2]
[426423323,1782372642000,-157.05615192,0.00023818,2]
[426423362,1782372642000,-4974.45996912,0.00024765,2]
[426423355,1782372642000,-160.02799572,0.00024657,2]
[426423367,1782372642000,-515588.01284874,0.00025,2]
[426423352,1782372642000,-151.79338997,0.00024217,2]
[426423354,1782372642000,-4974.45996912,0.00024491,2]
[426423322,1782372642000,-163.77052213,0.00023818,2]
[426423319,1782372642000,-200.28152374,0.00023818,2]
[426423383,1782372642000,-438.52232265,0.0002508,2]
[426423336,1782372642000,-709.10124685,0.00023818,2]
[426423335,1782372642000,-216.68537028,0.00023818,2]
[426423324,1782372642000,-198.0336629,0.00023818,2]
[426423337,1782372642000,-155.09929961,0.00023834,2]
[426423326,1782372642000,-209.11123862,0.00023818,2]
[426423332,1782372642000,-165.14370423,0.00023818,2]
[426423333,1782372642000,-204.08789077,0.00023818,2]
[426423328,1782372642000,-160.86386717,0.00023818,2]
[426423331,1782372642000,-173.86121272,0.00023818,2]
[426423334,1782372642000,-188.01531868,0.00023818,2]
[426423330,1782372642000,-161.74859968,0.00023818,2]
[426423348,1782372642000,-500.0,0.00024,2]
[426423345,1782372642000,-129590.2338481,0.00024,2]
[426423339,1782372642000,-4974.45996912,0.00023943,2]
[426423344,1782372642000,-11208.1521782,0.00024,2]
[426423346,1782372642000,-678.2,0.00024,7]
[426423343,1782372642000,-1261.8439086,0.00024,2]
[426423341,1782372642000,-3600.0,0.00024,2]
[426423347,1782372642000,-1412.0,0.00024,2]
[426423351,1782372642000,-4974.45996912,0.00024217,2]
[426423342,1782372642000,-7989.10826939,0.00024,2]
[426423340,1782372642000,-10679.60528872,0.00024,14]
[426423349,1782372642000,-570.43999955,0.0002411,2]
[426423338,1782372642000,-155.56103216,0.00023834,2]
[426423350,1782372642000,-518.5,0.00024217,2]
[426423419,1782372643000,-321.08376601,0.00025082,2]
[426423430,1782372643000,-327.54104426,0.00025082,2]
[426423428,1782372643000,-315.36838418,0.00025082,2]
[426423421,1782372643000,-315.61018949,0.00025082,2]
[426423422,1782372643000,-187.47591459,0.00025082,2]
[426423424,1782372643000,-332.30237422,0.00025082,2]
[426423414,1782372643000,-390.69338488,0.00025082,2]
[426423423,1782372643000,-310.0893251,0.00025082,2]
[426423417,1782372643000,-437.88572992,0.00025082,2]
[426423416,1782372643000,-504.65948068,0.00025082,2]
[426423425,1782372643000,-217.14752512,0.00025082,2]
[426423435,1782372643000,-321.72773434,0.00025082,2]
[426423420,1782372643000,-313.58971224,0.00025082,2]
[426423436,1782372643000,-418.22247724,0.00025082,2]
[426423456,1782372643000,-150.0,0.00025336,2]
[426423437,1782372643000,-347.72242544,0.00025082,2]
[426423432,1782372643000,-396.0673258,0.00025082,2]
[426423439,1782372643000,-154.46413638,0.00025082,2]
[426423429,1782372643000,-330.80406666,0.00025082,2]
[426423431,1782372643000,-314.11230384,0.00025082,2]
[426423434,1782372643000,-242.28663408,0.00025082,2]
[426423440,1782372643000,-330.28740846,0.00025082,2]
[426423438,1782372643000,-323.49719937,0.00025082,2]
[426423442,1782372643000,-376.03063737,0.00025082,2]
[426423452,1782372643000,-785.19337861,0.00025313,2]
[426423454,1782372643000,-150.0,0.00025336,2]
[426423453,1782372643000,-150.0,0.00025336,2]
[426423455,1782372643000,-150.0,0.00025336,2]
[426423418,1782372643000,-180.237739,0.00025082,2]
[426423433,1782372643000,-343.67144621,0.00025082,2]
[426423415,1782372643000,-620.3074505,0.00025082,2]
[426423385,1782372643000,-337.8051502,0.0002508,2]
[426423427,1782372643000,-400.56304748,0.00025082,2]
[426423384,1782372643000,-235.19536655,0.0002508,2]
[426423441,1782372643000,-408.17578154,0.00025082,2]
[426423386,1782372643000,-363.17446962,0.0002508,2]
[426423387,1782372643000,-322.22754878,0.0002508,2]
[426423389,1782372643000,-351.76048023,0.0002508,2]
[426423388,1782372643000,-222.38727293,0.0002508,2]
[426423398,1782372643000,-654.92716718,0.00025082,2]
[426423392,1782372643000,-374.84326569,0.00025082,2]
[426423400,1782372643000,-198.11764546,0.00025082,2]
[426423399,1782372643000,-190.61683669,0.00025082,2]
[426423390,1782372643000,-338.19608667,0.0002508,2]
[426423394,1782372643000,-350.09488068,0.00025082,2]
[426423396,1782372643000,-309.81910622,0.00025082,2]
[426423393,1782372643000,-368.92626716,0.00025082,2]
[426423397,1782372643000,-153.47523884,0.00025082,2]
[426423395,1782372643000,-306.12534767,0.00025082,2]
[426423403,1782372643000,-335.78549717,0.00025082,2]
[426423401,1782372643000,-152.82620691,0.00025082,2]
[426423404,1782372643000,-368.57224884,0.00025082,2]
[426423405,1782372643000,-334.55373319,0.00025082,2]
[426423406,1782372643000,-235.11639364,0.00025082,2]
[426423402,1782372643000,-231.90928126,0.00025082,2]
[426423407,1782372643000,-179.76355722,0.00025082,2]
[426423411,1782372643000,-232.1857895,0.00025082,2]
[426423409,1782372643000,-195.58683252,0.00025082,2]
[426423408,1782372643000,-150.03812539,0.00025082,2]
[426423410,1782372643000,-490.59425695,0.00025082,2]
[426423413,1782372643000,-369.14400681,0.00025082,2]
[426423412,1782372643000,-626.15131635,0.00025082,2]
[426423426,1782372643000,-317.88957163,0.00025082,2]
[426423443,1782372643000,-433.37074055,0.00025082,2]
[426423391,1782372643000,-376.69957016,0.0002508,2]
[426423447,1782372643000,-2000.0,0.000253,2]
[426423487,1782372643000,-444.77454586,0.00025923,2]
[426423498,1782372643000,-163.92024338,0.00025925,2]
[426423489,1782372643000,-507.29413001,0.00025923,2]
[426423491,1782372643000,-562.26489854,0.00025925,2]
[426423492,1782372643000,-553.38940075,0.00025925,2]
[426423496,1782372643000,-306.95047767,0.00025925,2]
[426423490,1782372643000,-565.04935523,0.00025923,2]
[426423494,1782372643000,-459.1880215,0.00025925,2]
[426423493,1782372643000,-525.14232102,0.00025925,2]
[426423495,1782372643000,-464.72865933,0.00025925,2]
[426423500,1782372643000,-396.23529093,0.00025925,2]
[426423499,1782372643000,-381.23367339,0.00025925,2]
[426423510,1782372643000,-229.17957011,0.00025925,2]
[426423506,1782372643000,-501.83059978,0.00025925,2]
[426423508,1782372643000,-470.23278728,0.00025925,2]
[426423507,1782372643000,-359.52711445,0.00025925,2]
[426423509,1782372643000,-276.51126466,0.00025925,2]
[426423501,1782372643000,-305.65241381,0.00025925,2]
[426423516,1782372643000,-464.37157899,0.00025925,2]
[426423503,1782372643000,-270.54846626,0.00025925,2]
[426423502,1782372643000,-463.81856251,0.00025925,2]
[426423504,1782372643000,-503.67824575,0.00025925,2]
[426423505,1782372643000,-552.85837326,0.00025925,2]
[426423512,1782372643000,-300.07625077,0.00025925,2]
[426423511,1782372643000,-156.04930708,0.00025925,2]
[426423515,1782372643000,-201.58988695,0.00025925,2]
[426423514,1782372643000,-735.89138542,0.00025925,2]
[426423517,1782372643000,-417.4342109,0.00025925,2]
[426423451,1782372643000,-4974.45996912,0.00025313,2]
[426423497,1782372643000,-982.39075078,0.00025925,2]
[426423486,1782372643000,-246.78690879,0.00025923,2]
[426423513,1782372643000,-391.17366504,0.00025925,2]
[426423482,1782372643000,-506.7077253,0.00025923,2]
[426423445,1782372643000,-247.3913292,0.00025118,2]
[426423449,1782372643000,-557.5788265,0.00025313,2]
[426423444,1782372643000,-531.82593514,0.00025082,2]
[426423458,1782372643000,-150.0,0.00025336,2]
[426423461,1782372643000,-1361.0,0.00025336,2]
[426423459,1782372643000,-150.0,0.00025336,2]
[426423468,1782372643000,-966.33,0.00025786,2]
[426423464,1782372643000,-1230.0,0.00025336,2]
[426423462,1782372643000,-1277.0,0.00025336,2]
[426423463,1782372643000,-383.0,0.00025336,2]
[426423457,1782372643000,-150.0,0.00025336,2]
[426423469,1782372643000,-1703.89,0.00025786,2]
[426423460,1782372643000,-150.0,0.00025336,2]
[426423466,1782372643000,-4974.45996912,0.00025587,2]
[426423471,1782372643000,-48994.37,0.00025786,2]
[426423467,1782372643000,-152.0,0.00025724,3]
[426423478,1782372643000,-353.88450487,0.00025923,2]
[426423480,1782372643000,-470.3907331,0.00025923,2]
[426423465,1782372643000,-6084.0,0.00025336,2]
[426423479,1782372643000,-657.78348398,0.00025923,2]
[426423477,1782372643000,-414.55281943,0.00025923,2]
[426423481,1782372643000,-166.44089872,0.00025923,2]
[426423476,1782372643000,-345.33799035,0.00025923,2]
[426423488,1782372643000,-527.64072034,0.00025923,2]
[426423472,1782372643000,-267168.20984756,0.000258,2]
[426423474,1782372643000,-4974.45996912,0.00025861,2]
[426423485,1782372643000,-218.48872038,0.00025923,2]
[426423484,1782372643000,-483.34132317,0.00025923,2]
[426423473,1782372643000,-501.20674818,0.00025861,2]
[426423475,1782372643000,-785.19337861,0.00025861,2]
[426423483,1782372643000,-544.76170444,0.00025923,2]
[426423558,1782372644000,-308.92827276,0.00025925,2]
[426423557,1782372644000,-495.43111269,0.00025925,2]
[426423555,1782372644000,-521.58363817,0.00025925,2]
[426423553,1782372644000,-627.33371587,0.00025925,2]
[426423554,1782372644000,-474.81042905,0.00025925,2]
[426423556,1782372644000,-485.24579905,0.00025925,2]
[426423552,1782372644000,-482.5916015,0.00025925,2]
[426423551,1782372644000,-484.57326817,0.00025925,2]
[426423549,1782372644000,-594.10098869,0.00025925,2]
[426423561,1782372644000,-612.26367232,0.00025925,2]
[426423559,1782372644000,-160.38992658,0.00025925,2]
[426423560,1782372644000,-564.04595605,0.00025925,2]
[426423576,1782372644000,-220.0,0.00026,2]
[426423562,1782372644000,-650.05611083,0.00025925,2]
[426423574,1782372644000,-220.80777104,0.00026,2]